[Event "28th Hit Open-A 2024"]
[Site "Nova Gorica"]
[Date "2024.01.27"]
[Round "2.25"]
[White "Sebenik, Matej"]
[Black "Garsky, Vladyslav"]
[Result "1-0"]
[ECO "D37"]
[WhiteElo "2536"]
[BlackElo "2186"]
[Annotator "TA"]
[PlyCount "103"]
[EventDate "2024.01.22"]
[EventType "swiss"]
[EventCountry "SLO"]
[SourceTitle "playchess.com"]
[Source "ChessBase"]
[SourceQuality "1"]
[TimeControl "5400+30"]

{[%evp 23,103,32,35,32,34,29,34,13,23,17,39,13,32,0,22,-33,0,-10,-8,-16,0,-8,-10,-8,14,12,11,8,11,17,32,15,38,41,65,51,129,121,137,94,124,131,131,121,126,119,114,106,134,0,0,-6,25,25,22,0,193,0,215,221,233,0,18,0,0,-31,-7,-17,-14,-13,219,195,303,310,309,301,310,300,462,462,29998,310]} 1. c4 {[%emt 0:00:05]} e6 {[%emt 0:01:17]} 2. Nf3 {[%emt 0:00:16]} d5 {[%emt 0:01:01]} 3. d4 {[%emt 0:00:10]} Nf6 {[%emt 0:00:16]} 4. Nc3 {[%emt 0:00:09]} a6 {[%emt 0:02:12]} 5. cxd5 {[%emt 0:00:22]} exd5 {[%emt 0:00:07]} 6. Bg5 {[%emt 0:00:13] D37: Damengambit (5.Lf4).} Be6 {[%emt 0:01:27]} 7. e3 {[%emt 0:00:40]} Nbd7 {[%emt 0:00:10]} 8. Bd3 {[%emt 0:00:11]} Bd6 {[%emt 0:00:35]} 9. O-O {[%emt 0:03:02]} c6 {[%emt 0:04:02]} 10. Bf4 {[%emt 0:00:10]} Qb8 {[%emt 0:00:08]} 11. Bxd6 {[%emt 0:00:07]} Qxd6 {[%emt 0:00:04]} 12. h3 {[%emt 0:00:10]} O-O {[%emt 0:01:05]} 13. Qc2 {[%emt 0:00:07]} Rfe8 {[%emt 0:08:40]} 14. a3 {[%emt 0:03:03]} g6 {[%emt 0:12:51]} 15. Rad1 $146 {[%emt 0:13:24]} ({Predecessor:} 15. Rfc1 Nh5 16. Na4 Ng7 17. b4 Bf5 18. Nc5 Qc7 19. Rab1 Nb6 20. Nd2 Nc8 21. a4 {1-0 Unuk,L (2346)-Moroni,L (2562) Bassano del Grappa op 11 2020 (3)}) 15... Rac8 {[%emt 0:15:23]} 16. Rfe1 {[%emt 0:13:14]} Nb6 {[%emt 0:12:55]} 17. Qb1 {[%emt 0:09:48]} Rcd8 {[%emt 0:04:09]} 18. Ng5 {[%emt 0:11:35]} Qf8 {[%emt 0:05:26]} 19. f4 {[%emt 0:00:41]} (19. Qc2 $11) 19... Qh6 {[%emt 0:03:02]} 20. Qc2 {[%emt 0:10:15]} Nc8 {[%emt 0:01:17]} 21. g4 {[%emt 0:00:45]} Qg7 {[%emt 0:03:32]} 22. Qg2 {[%emt 0:11:48]} Nd6 {[%emt 0:01:29]} 23. Nf3 {[%emt 0:01:32]} Nd7 {[%emt 0:02:32]} 24. Qg3 {[%emt 0:03:19]} f5 {[%emt 0:02:24]} 25. g5 {[%emt 0:01:38]} Ne4 {[%emt 0:01:50]} 26. Qg2 {[%emt 0:00:15]} Qe7 {[%emt 0:03:20]} 27. Ne2 {[%emt 0:01:56]} a5 {[%emt 0:03:03]} 28. h4 {[%emt 0:00:09]} b5 {[%emt 0:02:07]} 29. h5 {[%emt 0:05:12]} Kg7 {[%emt 0:01:26]} (29... b4 $14) 30. Qh2 $16 {[%emt 0:00:46]} Rh8 {[%emt 0:00:19]} 31. Qh4 {[%emt 0:04:09]} a4 {[%emt 0:05:08]} 32. Rc1 {[%emt 0:03:46]} Rc8 {[%emt 0:01:27]} 33. Rc2 {[%emt 0:00:09]} Nb6 {[%emt 0:01:14]} 34. Ne5 {[%emt 0:00:34]} Nc4 {[%emt 0:00:17]} 35. Bxc4 {[%emt 0:01:05]} dxc4 {[%emt 0:00:40] [#]} 36. d5 {[%emt 0:02:59]} (36. Ng3 $1 $16 {[%mdl 512]}) 36... Bxd5 $11 {[%emt 0:00:06]} 37. Nd4 {[%emt 0:00:04]} Qb7 {[%emt 0:01:18]} 38. Rd1 {[%emt 0:00:50]} (38. h6+ Kf8 39. Ne2 Ke7 $15) 38... Rce8 {[%emt 0:00:23]} 39. Rh2 {[%emt 0:00:35]} Nc5 $2 {[%emt 0:00:35] [#]} (39... c5 40. Nxb5 h6 41. hxg6 $18 (41. Nxg6 Qxb5 42. Rxd5 c3 $11)) (39... Qa6 $11) 40. Qe1 $2 {[%emt 0:00:29]} (40. hxg6 $2 hxg6 41. Qe1 Rxh2 42. Kxh2 Rh8+ 43. Kg3 Ne4+ 44. Kg2 Nxg5+ 45. Ndf3 Nxf3 46. Nxf3 Bxf3+ 47. Kxf3 Kf7 $19) (40. Ndxc6 $1 $18 Nd3 (40... Bxc6 $2 41. Rd6 $18) 41. Nb4) 40... Rxe5 $2 {[%emt 0:00:35]} (40... Ne4 $1 $11 {und Schwarz muss sich keine Sorgen machen.}) 41. fxe5 $18 {[%emt 0:00:05]} Qe7 {[%emt 0:00:13] [#]} 42. Qg3 $2 {[%emt 0:01:12]} (42. Qh4 $1 $18 {hxg6 ist eine echte Drohung.} Qxe5 43. hxg6 Kxg6 (43... Qxe3+ $2 {verliert.} 44. Kf1 $18) 44. Nxc6 (44. Qh6+ Kf7 $16) 44... Qxe3+ 45. Rf2 Bxc6 46. Qh6+ Kf7 47. Qf6+ (47. Qxc6 Re8 $11) (47. g6+ $2 hxg6 48. Qxh8 Nd3 $19) 47... Kg8 48. Rd8+ (48. Qxc6 Nd3 $18) 48... Be8 49. Qxf5) 42... Ne4 $11 {[%emt 0:00:48]} 43. Qf4 {[%emt 0:00:05]} Qxg5+ {[%emt 0:00:17]} 44. Qxg5 {[%emt 0:00:07]} Nxg5 {[%emt 0:00:04]} 45. hxg6 {[%emt 0:00:03]} Kxg6 {[%emt 0:01:00]} 46. Rf1 {[%emt 0:01:44]} (46. Kf2 $5) 46... c5 $2 {[%emt 0:00:43]} (46... Be4 $11 {und Schwarz steht sicher.}) 47. Nxf5 $18 {[%emt 0:00:24]} Nf3+ {[%emt 0:00:10]} (47... Kf7 {kämpft weiter.}) 48. Rxf3 $1 $18 {[%emt 0:00:03]} Bxf3 {[%emt 0:00:02]} 49. Nh4+ {[%emt 0:00:06]} Kg5 {[%emt 0:00:28]} 50. Nxf3+ {[%emt 0:00:05]} Kg4 {[%emt 0:00:02]} (50... Kf5 {ist eine bessere Verteidigung.} 51. Rh4 h5) 51. Kf2 $18 {[%emt 0:00:17]} b4 {[%emt 0:00:14]} (51... Kf5 $18 52. Rh5+ (52. Rh4 h5 $18) 52... Kg6) 52. Rh4+ $2 {[%emt 0:00:04]} (52. e4 {setzt Matt} Rf8 53. Rh4#) 1-0

[Event "28th Hit Open-A 2024"]
[Site "Nova Gorica"]
[Date "2024.01.27"]
[Round "2.26"]
[White "Cvitan, Ognjen"]
[Black "Herega, Nejc"]
[Result "1/2-1/2"]
[ECO "E19"]
[WhiteElo "2422"]
[BlackElo "2257"]
[Annotator "RC"]
[PlyCount "35"]
[EventDate "2024.01.22"]
[EventType "swiss"]
[EventCountry "SLO"]
[SourceTitle "playchess.com"]
[Source "ChessBase"]
[SourceQuality "1"]
[TimeControl "5400+30"]

1. c4 {[%emt 0:01:07]} Nf6 {[%emt 0:00:48]} 2. Nf3 {[%emt 0:01:51]} e6 {[%emt 0:00:38]} 3. g3 {[%emt 0:02:15]} b6 {[%emt 0:02:11]} 4. Bg2 {[%emt 0:01:44]} Bb7 {[%emt 0:00:11]} 5. O-O {[%emt 0:01:56]} Be7 {[%emt 0:00:31]} 6. d4 {[%emt 0:03:37]} O-O {[%emt 0:00:57]} 7. Nc3 {[%emt 0:02:16]} Ne4 {[%emt 0:01:09]} 8. Qc2 {[%emt 0:01:25]} Nxc3 {[%emt 0:03:19]} 9. Qxc3 {[%emt 0:02:18]} Be4 {[%emt 0:04:26]} 10. Rd1 {[%emt 0:03:52]} Bf6 {[%emt 0:05:31]} 11. Bf4 {[%emt 0:10:59]} c6 {[%emt 0:16:48]} 12. Bd6 {[%emt 0:16:25]} Be7 {[%emt 0:03:33]} 13. Qa3 {[%emt 0:00:23]} Bxd6 {[%emt 0:05:47]} 14. Qxd6 {[%emt 0:00:09]} Na6 {[%emt 0:05:09]} 15. Ne5 {[%emt 0:01:32]} Bxg2 {[%emt 0:02:17]} 16. Kxg2 {[%emt 0:01:51]} f6 {[%emt 0:03:13]} 17. Nd3 {[%emt 0:04:33]} Qc7 {[%emt 0:03:34]} 18. Qxc7 {[%emt 0:01:25]} 1/2-1/2

[Event "28th Hit Open-A 2024"]
[Site "Nova Gorica"]
[Date "2024.01.27"]
[Round "2.27"]
[White "Szegedy, Matyas"]
[Black "Fercec, Nenad"]
[Result "0-1"]
[ECO "B51"]
[WhiteElo "2129"]
[BlackElo "2410"]
[Annotator "RC"]
[PlyCount "86"]
[EventDate "2024.01.22"]
[EventType "swiss"]
[EventCountry "SLO"]
[SourceTitle "playchess.com"]
[Source "ChessBase"]
[SourceQuality "1"]
[TimeControl "5400+30"]

1. e4 {[%emt 0:25:50]} c5 {[%emt 0:00:08]} 2. Nf3 {[%emt 0:00:05]} d6 {[%emt 0:00:06]} 3. Bb5+ {[%emt 0:00:30]} Nd7 {[%emt 0:00:08]} 4. O-O {[%emt 0:00:07]} a6 {[%emt 0:00:24]} 5. Bd3 {[%emt 0:00:08]} Ngf6 {[%emt 0:00:32]} 6. c3 {[%emt 0:00:17]} g6 {[%emt 0:00:13]} 7. Bc2 {[%emt 0:00:11]} Bg7 {[%emt 0:00:06]} 8. d4 {[%emt 0:00:11]} cxd4 {[%emt 0:00:37]} 9. cxd4 {[%emt 0:00:07]} O-O {[%emt 0:00:12]} 10. a4 {[%emt 0:03:53]} e5 {[%emt 0:00:48]} 11. Nc3 {[%emt 0:08:11]} Re8 {[%emt 0:01:54]} 12. d5 {[%emt 0:07:40]} a5 {[%emt 0:00:51]} 13. Nd2 {[%emt 0:11:50]} Nc5 {[%emt 0:00:23]} 14. Nc4 {[%emt 0:01:02]} b6 {[%emt 0:01:21]} 15. Re1 {[%emt 0:00:15]} Ba6 {[%emt 0:00:07]} 16. Na3 {[%emt 0:00:05]} Nh5 {[%emt 0:03:53]} 17. Nab5 {[%emt 0:09:45]} Bc8 {[%emt 0:19:38]} 18. Ne2 {[%emt 0:08:47]} Rf8 {[%emt 0:03:49]} 19. Ng3 {[%emt 0:02:00]} Nf4 {[%emt 0:08:42]} 20. Qf3 {[%emt 0:01:53]} Ba6 {[%emt 0:00:16]} 21. Rb1 {[%emt 0:04:37]} Bxb5 {[%emt 0:03:03]} 22. axb5 {[%emt 0:00:07]} Qd7 {[%emt 0:00:12]} 23. Bxf4 {[%emt 0:00:43]} exf4 {[%emt 0:00:06]} 24. Qxf4 {[%emt 0:00:04]} Be5 {[%emt 0:05:04]} 25. Qd2 {[%emt 0:01:02]} Qxb5 {[%emt 0:00:10]} 26. b4 {[%emt 0:01:47]} axb4 {[%emt 0:00:29]} 27. Rxb4 {[%emt 0:00:12]} Qa5 {[%emt 0:00:04]} 28. Reb1 {[%emt 0:00:46]} Na6 {[%emt 0:00:20]} 29. Rd4 {[%emt 0:01:01]} Bxd4 {[%emt 0:00:06]} 30. Qxd4 {[%emt 0:00:04]} Qc5 {[%emt 0:00:05]} 31. Qd2 {[%emt 0:00:17]} Rfc8 {[%emt 0:00:40]} 32. Ba4 {[%emt 0:03:35]} Qc3 {[%emt 0:01:31]} 33. Qd1 {[%emt 0:01:52]} Nc5 {[%emt 0:01:17]} 34. Bc6 {[%emt 0:00:05]} Ra2 {[%emt 0:00:09]} 35. Qg4 {[%emt 0:00:29]} Rc7 {[%emt 0:01:35]} 36. Rf1 {[%emt 0:00:10]} Ra1 {[%emt 0:00:44]} 37. h4 {[%emt 0:00:18]} Rxf1+ {[%emt 0:00:06]} 38. Nxf1 {[%emt 0:00:28]} Qe5 {[%emt 0:02:23]} 39. Ng3 {[%emt 0:00:27]} h5 {[%emt 0:00:15]} 40. Qf3 {[%emt 0:01:52]} Re7 {[%emt 0:00:34]} 41. Qa3 {[%emt 0:00:40]} Nxe4 {[%emt 0:00:29]} 42. Nxe4 {[%emt 0:02:27]} Qxe4 {[%emt 0:00:07]} 43. g3 {[%emt 0:00:26]} Qd4 {[%emt 0:00:45]} 0-1

[Event "28th Hit Open-A 2024"]
[Site "Nova Gorica"]
[Date "2024.01.27"]
[Round "2.28"]
[White "Ceschia, Ivano"]
[Black "Gaal, Zsoka"]
[Result "1-0"]
[ECO "B12"]
[WhiteElo "2183"]
[BlackElo "2341"]
[Annotator "RC"]
[PlyCount "44"]
[EventDate "2024.01.22"]
[EventType "swiss"]
[EventCountry "SLO"]
[SourceTitle "playchess.com"]
[Source "ChessBase"]
[SourceQuality "1"]
[TimeControl "5400+30"]

1. e4 {[%emt 0:03:03]} c6 {[%emt 0:00:13]} 2. d4 {[%emt 0:00:50]} d5 {[%emt 0:00:10]} 3. e5 {[%emt 0:00:07]} Bf5 {[%emt 0:00:26]} 4. h4 {[%emt 0:00:41]} a6 {[%emt 0:01:52]} 5. h5 c5 6. g4 Bd7 7. c3 Nc6 8. Bh3 f6 9. f4 Nh6 10. exf6 exf6 11. f5 Qc7 12. Ne2 O-O-O 13. O-O Bd6 14. Nf4 Ne7 15. Na3 Nf7 16. Bg2 Ng5 {[%emt 0:05:59]} 17. c4 {[%emt 0:09:57]} g6 {[%emt 0:00:30]} 18. cxd5 {[%emt 0:00:30]} gxf5 {[%emt 0:00:30]} 19. Nc4 {[%emt 0:00:30]} cxd4 {[%emt 0:00:30]} 20. Nxd6+ {[%emt 0:00:30]} Qxd6 {[%emt 0:00:30]} 21. Qxd4 {[%emt 0:00:30]} Bb5 {[%emt 0:00:30]} 22. Rf2 {[%emt 0:00:30]} fxg4 {[%emt 0:00:30]} 1-0

[Event "28th Hit Open-A 2024"]
[Site "Nova Gorica"]
[Date "2024.01.27"]
[Round "2.29"]
[White "Jalovec, Igor"]
[Black "Cziko, Eduard-Carol"]
[Result "1-0"]
[ECO "B22"]
[WhiteElo "1703"]
[BlackElo "1946"]
[Annotator "TA"]
[PlyCount "31"]
[EventDate "2024.01.22"]
[EventType "swiss"]
[EventCountry "SLO"]
[SourceTitle "playchess.com"]
[Source "ChessBase"]
[SourceQuality "1"]
[TimeControl "5400+30"]

{[%evp 11,31,4,21,16,19,0,20,0,7,4,75,33,99,-30,-22,-33,-13,-41,443,440,416,426]} 1. e4 {[%emt 0:00:03]} c5 {[%emt 0:00:08]} 2. c3 {[%emt 0:00:09]} d5 {[%emt 0:00:10]} 3. exd5 {[%emt 0:00:53]} Qxd5 {[%emt 0:00:06]} 4. d4 {[%emt 0:01:31]} Nf6 {[%emt 0:00:06]} 5. Nf3 {[%emt 0:02:01]} e6 {[%emt 0:00:07]} 6. Be2 {[%emt 0:01:06]} cxd4 {[%emt 0:00:26]} 7. Qxd4 {[%emt 0:05:20]} Nc6 {[%emt 0:02:46]} 8. Qa4 {[%emt 0:07:38]} (8. Qxd5 {simplifies} Nxd5 9. O-O Bc5 10. a3) 8... Bc5 {[%emt 0:25:03]} 9. b4 {[%emt 0:08:20][%cal Bb2b4,Bb4b5][%mdl 32] The position is equal.} Be7 {[%emt 0:05:40]} 10. O-O {[%emt 0:02:41]} Qd6 {[%emt 0:08:06]} (10... O-O $11 {keeps the balance.}) 11. b5 {[%emt 0:05:22] White is more active.} Ne5 {[%emt 0:02:22]} (11... Nb8 $14) 12. Nd4 {[%emt 0:06:29]} (12. Ba3 $16 Nxf3+ 13. Bxf3) 12... O-O $11 {[%emt 0:01:45]} 13. Ba3 {[%emt 0:03:24]} Qc7 {[%emt 0:05:27]} 14. b6 {[%emt 0:03:23]} axb6 {[%emt 0:00:02][%mdl 8192] [#]} (14... Qd8 $15 {stays ahead.}) 15. Qxa8 $18 {[%emt 0:00:33]} Bd7 {[%emt 0:00:06]} 16. Qa7 {[%emt 0:00:51] Weighted Error Value: White=0.38/Black=0.59.  Loses game:     	---       	Black=1      Mistake:       	White=1     	Black=2      Inaccurate:     	White=2     	---        OK:         	White=2     	Black=3      Best:        	White=2     	---} 1-0

[Event "28th Hit Open-A 2024"]
[Site "Nova Gorica"]
[Date "2024.01.27"]
[Round "2.30"]
[White "Vicic, Mark"]
[Black "Hozjan, Erik"]
[Result "0-1"]
[ECO "A06"]
[WhiteElo "1729"]
[BlackElo "1897"]
[Annotator "NA RC COMBH"]
[PlyCount "80"]
[EventDate "2024.01.22"]
[EventType "swiss"]
[EventCountry "SLO"]
[SourceTitle "playchess.com"]
[Source "ChessBase"]
[SourceQuality "1"]
[TimeControl "5400+30"]

1. b3 {[%emt 0:00:03]} c5 {[%emt 0:00:40]} 2. Bb2 {[%emt 0:00:05]} Nc6 {[%emt 0:00:04]} 3. e3 {[%emt 0:00:08]} d5 {[%emt 0:00:18]} 4. Bb5 {[%emt 0:00:13]} Bd7 {[%emt 0:00:50]} 5. Nf3 {[%emt 0:00:11]} Nf6 {[%emt 0:02:27]} 6. O-O {[%emt 0:00:26]} Qc7 {[%emt 0:00:35]} 7. c4 {[%emt 0:01:31]} a6 {[%emt 0:03:20]} 8. Bxc6 {[%emt 0:02:16]} Bxc6 {[%emt 0:00:08]} 9. Ne5 {[%emt 0:00:44]} e6 {[%emt 0:00:22]} 10. d3 {[%emt 0:04:24]} Bd6 {[%emt 0:02:57]} 11. f4 {[%emt 0:00:23]} Nd7 {[%emt 0:01:45]} 12. Nxc6 {[%emt 0:15:56]} Qxc6 {[%emt 0:00:07]} 13. Qg4 {[%emt 0:01:31]} O-O-O {[%emt 0:01:19]} 14. Nd2 {[%emt 0:04:14]} f5 {[%emt 0:02:10]} 15. Qf3 {[%emt 0:00:56]} Rhg8 {[%emt 0:01:08]} 16. Rac1 {[%emt 0:01:20]} g5 {[%emt 0:00:50]} 17. b4 {[%emt 0:01:29]} gxf4 {[%emt 0:01:44]} 18. exf4 {[%emt 0:03:47]} d4 {[%emt 0:02:19]} 19. b5 {[%emt 0:09:10]} Qxf3 {[%emt 0:03:50]} 20. Rxf3 {[%emt 0:00:15]} Rg4 {[%emt 0:00:20]} 21. g3 {[%emt 0:02:53]} Rdg8 {[%emt 0:01:18]} 22. Rcf1 {[%emt 0:02:48]} e5 {[%emt 0:00:24]} 23. fxe5 {[%emt 0:01:08]} Nxe5 {[%emt 0:00:07]} 24. Rxf5 {[%emt 0:00:18]} Nxd3 {[%emt 0:00:07]} 25. bxa6 {[%emt 0:04:59]} bxa6 {[%emt 0:01:26]} 26. Ba3 {[%emt 0:01:00]} Re8 {[%emt 0:51:14]} 27. Rf6 {[%emt 0:07:07]} Kc7 {[%emt 0:01:01]} 28. Nb3 {[%emt 0:03:59]} Re2 {[%emt 0:02:17]} 29. Rf7+ {[%emt 0:02:58]} Kc6 {[%emt 0:02:53]} 30. Na5+ {[%emt 0:01:56]} Kb6 {[%emt 0:00:07]} 31. R1f6 {[%emt 0:03:32]} Kxa5 {[%emt 0:01:34]} 32. Rxd6 {[%emt 0:00:10]} Rxa2 {[%emt 0:00:04]} 33. Ra7 {[%emt 0:02:36]} Nb4 {[%emt 0:01:09]} 34. Bxb4+ {[%emt 0:06:12]} Kxb4 {[%emt 0:00:07]} 35. Raxa6 {[%emt 0:00:58]} Rxa6 {[%emt 0:00:12]} 36. Rxa6 {[%emt 0:00:05]} Kxc4 {[%emt 0:00:05]} 37. Kf2 {[%emt 0:00:18]} Re4 {[%emt 0:00:24]} 38. Kf3 {[%emt 0:02:17]} Re7 {[%emt 0:00:07]} 39. Rd6 {[%emt 0:00:45]} d3 {[%emt 0:00:20]} 40. h4 {[%emt 0:00:35]} Kc3 {[%emt 0:00:08]} 0-1

[Event "28th Hit Open-A 2024"]
[Site "Nova Gorica"]
[Date "2024.01.27"]
[Round "2.31"]
[White "Kekic, Urban"]
[Black "Trybus, Dominika"]
[Result "0-1"]
[ECO "A26"]
[WhiteElo "1885"]
[BlackElo "1530"]
[Annotator "NA RC COMBH"]
[PlyCount "98"]
[EventDate "2024.01.22"]
[EventType "swiss"]
[EventCountry "SLO"]
[SourceTitle "playchess.com"]
[Source "ChessBase"]
[SourceQuality "1"]
[TimeControl "5400+30"]

1. c4 {[%emt 0:00:02]} Nf6 {[%emt 0:00:58]} 2. Nf3 {[%emt 0:00:49]} g6 {[%emt 0:00:44]} 3. g3 {[%emt 0:00:30]} Bg7 {[%emt 0:00:28]} 4. Bg2 {[%emt 0:00:07]} O-O {[%emt 0:00:09]} 5. O-O {[%emt 0:00:11]} d6 {[%emt 0:01:12]} 6. Nc3 {[%emt 0:00:11]} e5 {[%emt 0:01:29]} 7. d3 {[%emt 0:00:23]} Nc6 {[%emt 0:01:36]} 8. Rb1 {[%emt 0:01:18]} a5 {[%emt 0:01:45]} 9. a3 {[%emt 0:00:42]} Be6 {[%emt 0:03:53]} 10. b4 {[%emt 0:09:49]} axb4 {[%emt 0:00:17]} 11. axb4 {[%emt 0:00:10]} Qc8 {[%emt 0:10:05]} 12. Re1 {[%emt 0:18:12]} e4 {[%emt 0:06:14]} 13. Ng5 {[%emt 0:17:38]} exd3 {[%emt 0:01:35]} 14. exd3 {[%emt 0:02:41]} Bf5 {[%emt 0:02:52]} 15. Nf3 {[%emt 0:04:40]} Re8 {[%emt 0:02:05]} 16. Rxe8+ {[%emt 0:04:13]} Qxe8 {[%emt 0:00:18]} 17. b5 {[%emt 0:06:12]} Nd8 {[%emt 0:14:37]} 18. Bg5 {[%emt 0:04:47]} c6 {[%emt 0:06:04]} 19. Qd2 {[%emt 0:02:37]} Qd7 {[%emt 0:05:41]} 20. bxc6 {[%emt 0:05:59]} bxc6 {[%emt 0:00:14]} 21. Nd4 {[%emt 0:02:23]} Bh3 {[%emt 0:08:16]} 22. Nf3 {[%emt 0:01:53]} Bxg2 {[%emt 0:01:55]} 23. Kxg2 {[%emt 0:00:07]} Ne6 {[%emt 0:00:54]} 24. Be3 {[%emt 0:01:08]} Ng4 {[%emt 0:05:22]} 25. Nd1 {[%emt 0:02:17]} Ne5 {[%emt 0:01:59]} 26. Qe2 {[%emt 0:02:24]} Nxf3 {[%emt 0:04:13]} 27. Qxf3 {[%emt 0:00:18]} d5 {[%emt 0:01:32]} 28. Kg1 {[%emt 0:02:39]} dxc4 {[%emt 0:00:37]} 29. dxc4 {[%emt 0:00:27]} Rd8 {[%emt 0:00:27]} 30. Rc1 {[%emt 0:03:30]} c5 {[%emt 0:02:57]} 31. Nc3 {[%emt 0:04:22]} Qd3 {[%emt 0:01:35]} 32. Nd5 {[%emt 0:03:20]} Nd4 {[%emt 0:00:52]} 33. Qd1 {[%emt 0:00:30]} Ne2+ {[%emt 0:00:25]} 34. Kg2 {[%emt 0:00:16]} Nxc1 {[%emt 0:00:45]} 35. Qxc1 {[%emt 0:00:11]} Ra8 {[%emt 0:01:47]} 36. Bxc5 {[%emt 0:00:32]} Qe4+ {[%emt 0:00:20]} 37. Kh3 {[%emt 0:00:11]} Qf5+ {[%emt 0:02:19]} 38. Kg2 {[%emt 0:00:14]} Qe4+ {[%emt 0:00:50]} 39. Kh3 {[%emt 0:00:08]} h5 {[%emt 0:01:54]} 40. Be3 {[%emt 0:01:48]} Ra1 {[%emt 0:01:33]} 41. Qd2 {[%emt 0:00:32]} Qg4+ {[%emt 0:00:36]} 42. Kg2 {[%emt 0:00:04]} Qxc4 {[%emt 0:01:02]} 43. Ne7+ {[%emt 0:00:41]} Kh7 {[%emt 0:00:36]} 44. Qd8 {[%emt 0:00:21]} f5 {[%emt 0:01:35]} 45. Qd6 {[%emt 0:00:52]} Qf1+ {[%emt 0:01:20]} 46. Kf3 {[%emt 0:00:04]} Qh1+ {[%emt 0:00:27]} 47. Ke2 {[%emt 0:00:42]} Re1+ {[%emt 0:00:35]} 48. Kd3 {[%emt 0:00:28]} Rd1+ {[%emt 0:00:26]} 49. Bd2 {[%emt 0:00:15]} Qe4# {[%emt 0:00:09]} 0-1

[Event "28th Hit Open-A 2024"]
[Site "Nova Gorica"]
[Date "2024.01.27"]
[Round "2.32"]
[White "Zlatanovic, Srdjan"]
[Black "Racnik, Tone"]
[Result "1-0"]
[ECO "D03"]
[WhiteElo "1675"]
[BlackElo "1849"]
[Annotator "NA RC COMBH"]
[PlyCount "64"]
[EventDate "2024.01.22"]
[EventType "swiss"]
[EventCountry "SLO"]
[SourceTitle "playchess.com"]
[Source "ChessBase"]
[SourceQuality "1"]
[TimeControl "5400+30"]

1. d4 {[%emt 0:00:04]} Nf6 {[%emt 0:00:08]} 2. Nf3 {[%emt 0:00:15]} d5 {[%emt 0:00:53]} 3. Bg5 {[%emt 0:00:50]} h6 {[%emt 0:01:28]} 4. Bh4 {[%emt 0:00:09]} Bf5 {[%emt 0:01:22]} 5. e3 {[%emt 0:00:18]} c5 {[%emt 0:01:45]} 6. Bd3 {[%emt 0:00:27]} Bxd3 {[%emt 0:07:44]} 7. cxd3 {[%emt 0:01:51]} Nc6 {[%emt 0:03:27]} 8. Qa4 {[%emt 0:03:56]} Qb6 {[%emt 0:03:36]} 9. Nbd2 {[%emt 0:00:25]} g5 {[%emt 0:01:38]} 10. Bg3 {[%emt 0:02:40]} g4 {[%emt 0:04:00]} 11. dxc5 {[%emt 0:02:34]} Qb4 {[%emt 0:03:36]} 12. Qxb4 {[%emt 0:02:39]} Nxb4 {[%emt 0:00:05]} 13. Nd4 {[%emt 0:01:07]} Nxd3+ {[%emt 0:01:45]} 14. Ke2 {[%emt 0:00:23]} Nxc5 {[%emt 0:00:06]} 15. Nb5 {[%emt 0:00:43]} Ne6 {[%emt 0:03:56]} 16. Rac1 {[%emt 0:00:27]} Bg7 {[%emt 0:10:45]} 17. Nc7+ {[%emt 0:03:17]} Nxc7 {[%emt 0:00:07]} 18. Rxc7 {[%emt 0:00:06]} b6 {[%emt 0:01:40]} 19. Rhc1 {[%emt 0:00:02]} Nh5 {[%emt 0:01:49]} 20. Bh4 {[%emt 0:02:33]} Nf6 {[%emt 0:11:51]} 21. Rb7 {[%emt 0:03:44]} e6 {[%emt 0:02:03]} 22. Rcc7 {[%emt 0:02:00]} O-O {[%emt 0:00:10]} 23. Rxa7 {[%emt 0:00:48]} Ne4 {[%emt 0:02:51]} 24. Nxe4 {[%emt 0:03:07]} Rxa7 {[%emt 0:04:49]} 25. Rxa7 {[%emt 0:00:02]} dxe4 {[%emt 0:00:09]} 26. b3 {[%emt 0:03:48]} Rc8 {[%emt 0:00:14]} 27. Rd7 {[%emt 0:00:24]} Bc3 {[%emt 0:00:55]} 28. Rd8+ {[%emt 0:04:46]} Rxd8 {[%emt 0:00:41]} 29. Bxd8 {[%emt 0:00:01]} b5 {[%emt 0:00:40]} 30. a4 {[%emt 0:00:30]} bxa4 {[%emt 0:00:26]} 31. bxa4 {[%emt 0:00:04]} Kf8 {[%emt 0:00:05]} 32. a5 {[%emt 0:01:08]} Ke8 {[%emt 0:00:05]} 1-0

[Event "28th Hit Open-A 2024"]
[Site "Nova Gorica"]
[Date "2024.01.27"]
[Round "2.33"]
[White "Rigatti, Giorgio"]
[Black "Deschi, Leonardo Simone"]
[Result "1-0"]
[ECO "C42"]
[WhiteElo "1749"]
[BlackElo "1639"]
[Annotator "NA RC COMBH"]
[PlyCount "73"]
[EventDate "2024.01.22"]
[EventType "swiss"]
[EventCountry "SLO"]
[SourceTitle "playchess.com"]
[Source "ChessBase"]
[SourceQuality "1"]
[TimeControl "5400+30"]

1. e4 {[%emt 0:00:04]} e5 {[%emt 0:05:20]} 2. Nf3 {[%emt 0:00:19]} Nf6 {[%emt 0:00:09]} 3. Nxe5 {[%emt 0:00:13]} d6 {[%emt 0:00:08]} 4. Nf3 {[%emt 0:00:08]} Nxe4 {[%emt 0:00:08]} 5. d4 {[%emt 0:00:07]} d5 {[%emt 0:00:14]} 6. Bd3 {[%emt 0:00:09]} Be7 {[%emt 0:02:13]} 7. O-O {[%emt 0:00:10]} O-O {[%emt 0:04:35]} 8. c4 {[%emt 0:00:52]} Nf6 {[%emt 0:00:46]} 9. Nc3 {[%emt 0:00:14]} dxc4 {[%emt 0:05:09]} 10. Bxc4 {[%emt 0:00:09]} Bg4 {[%emt 0:02:06]} 11. Re1 {[%emt 0:09:17]} Nbd7 {[%emt 0:15:23]} 12. Bg5 {[%emt 0:06:46]} Nb6 {[%emt 0:04:02]} 13. Bb3 {[%emt 0:01:43]} c6 {[%emt 0:08:27]} 14. Qe2 {[%emt 0:05:10]} Re8 {[%emt 0:01:43]} 15. Rad1 {[%emt 0:12:32]} Nfd5 {[%emt 0:08:21]} 16. Be3 {[%emt 0:18:28]} Bf6 {[%emt 0:02:12]} 17. h3 {[%emt 0:00:48]} Nf4 {[%emt 0:09:14]} 18. Qf1 {[%emt 0:01:16]} Nxh3+ {[%emt 0:00:57]} 19. Kh1 {[%emt 0:01:49]} Bxf3 {[%emt 0:02:14]} 20. gxf3 {[%emt 0:00:03]} Ng5 {[%emt 0:02:43]} 21. Qg2 {[%emt 0:00:17]} h6 {[%emt 0:06:47]} 22. Rg1 {[%emt 0:04:11]} Qe7 {[%emt 0:02:57]} 23. Ne2 {[%emt 0:04:45]} Nd5 {[%emt 0:01:54]} 24. Bxd5 {[%emt 0:00:38]} cxd5 {[%emt 0:00:12]} 25. Nf4 {[%emt 0:00:05]} Qd7 {[%emt 0:01:11]} 26. Nh5 {[%emt 0:01:21]} Qe6 {[%emt 0:00:55]} 27. f4 {[%emt 0:00:59]} Qf5 {[%emt 0:11:14]} 28. fxg5 {[%emt 0:02:35]} Bd8 {[%emt 0:02:32]} 29. Qg4 {[%emt 0:03:01]} Qc2 {[%emt 0:00:39]} 30. Nf6+ {[%emt 0:01:32]} Bxf6 {[%emt 0:00:24]} 31. gxf6 {[%emt 0:00:02]} g6 {[%emt 0:00:33]} 32. Rc1 {[%emt 0:03:41]} Qxb2 {[%emt 0:03:38]} 33. Qh5 {[%emt 0:03:11]} Re6 {[%emt 0:00:00]} 34. Rxg6+ {[%emt 0:02:10]} Kf8 {[%emt 0:00:00]} 35. Bxh6+ {[%emt 0:00:09]} Ke8 {[%emt 0:00:00]} 36. Rg8+ {[%emt 0:00:07]} Kd7 {[%emt 0:00:00]} 37. Qxd5+ {[%emt 0:00:06]} 1-0